bitfinex-derivatives/quotes_SOLF0:USTF0_20241026
["timestamp","ask_amount","ask_price","bid_price","bid_amount"]
[1729970198357,8.6309,172.0,171.97,2.9113]
[1729970201567,5.72,172.0,171.98,2.9112]
[1729970202457,5.72,172.0,171.97,12.58911072]
[1729970202655,5.72,172.0,171.97,15.50041072]
[1729970203049,1.5017,172.05,171.97,12.58911072]
[1729970203255,5.72,172.04,171.99,15.50011072]
[1729970203558,5.72,172.04,171.99,12.58911072]
[1729970203760,2.9106,172.02,171.99,12.58911072]
[1729970204460,5.72,172.04,171.99,12.58911072]
[1729970204663,5.72,172.04,171.96,15.50051072]
[1729970205261,2.9109,172.0,171.96,15.50051072]
[1729970205459,5.72,171.99,171.96,15.50051072]
[1729970208069,2.9117,171.95,171.91,2.9124]
[1729970208266,5.4,171.94,171.91,2.9124]
[1729970208956,5.4,171.94,171.92,2.9122]
[1729970211372,2.9117,171.95,171.92,2.9122]
[1729970211572,5.4,171.94,171.92,2.9122]
[1729970211772,5.4,171.94,171.91,2.9123]
[1729970212169,5.4,171.94,171.86,2.9132]
[1729970212370,5.4,171.94,171.87,12.58911072]
[1729970214773,8.312,171.94,171.89,2.9127]
[1729970215776,2.9121,171.93,171.89,2.9127]
[1729970217166,8.3119,171.94,171.89,2.9127]
[1729970218976,5.4,171.93,171.89,2.9127]
[1729970219683,5.4,171.93,171.87,12.58911072]
[1729970219882,5.4,171.93,171.9,2.9125]
[1729970220179,5.4,171.93,171.89,12.58911072]
[1729970220379,5.4,171.93,171.85,1.5021]
[1729970220380,5.4,171.93,171.92,8.05878946]
[1729970221080,4.4369,171.97,171.92,8.05878946]
[1729970221282,5.4,171.96,171.94,8.05878946]
[1729970222674,13.45878946,171.96,171.9,2.9125]
[1729970222874,13.45878946,171.96,171.9,10.97128946]
[1729970222875,8.05878946,171.95,171.9,10.97128946]
[1729970223387,2.9119,171.94,171.9,10.97128946]
[1729970223977,2.9119,171.94,171.91,2.9124]
[1729970224174,4.437,171.97,171.93,8.05878946]
[1729970224381,5.4,171.96,171.93,8.05878946]
[1729970224579,5.4,171.96,171.93,10.97068946]
[1729970225078,13.45878946,171.96,171.92,8.05878946]
[1729970225278,13.45878946,171.96,171.85,1.5021]
[1729970225279,13.45878946,171.96,171.91,8.05878946]
[1729970225587,2.9119,171.94,171.91,8.05878946]
[1729970226872,2.9118,171.95,171.91,10.97108946]
[1729970227286,5.4,171.96,171.92,8.05878946]
[1729970227485,5.4,171.96,171.85,1.5021]
[1729970227486,5.4,171.96,171.94,2.9117]
[1729970227786,5.4,171.96,171.93,8.05878946]
[1729970228485,5.4,171.96,171.91,12.58886843]
[1729970228681,1.5255,171.97,171.91,12.58886843]
[1729970228888,5.4,171.96,171.95,2.9116]
[1729970229374,4.4488,172.02,171.98,2.9111]
[1729970229575,5.4,172.01,171.95,12.58886843]
[1729970230389,8.3107,172.01,171.97,2.9112]
[1729970230586,1.5383,172.02,171.95,12.58886843]
[1729970230793,5.4,172.01,171.98,2.9111]
[1729970232390,5.4,172.01,171.91,12.58886843]
[1729970232391,5.4,172.03,172.02,2.9104]
[1729970232576,1.5446,172.1,172.0,12.58886843]
[1729970232780,5.4,172.07,172.0,12.58886843]
[1729970234186,8.3098,172.07,172.02,2.9104]
[1729970234987,5.4,172.07,172.02,2.9104]
[1729970235186,2.9099,172.06,172.02,2.9104]
[1729970235396,5.4,172.05,172.02,2.9104]
[1729970237288,2.9099,172.06,172.02,2.9104]
[1729970237588,5.16,172.05,172.02,2.9104]
[1729970238095,5.16,172.05,172.0,12.58886843]
[1729970238289,5.16,172.05,172.01,2.9107]
[1729970238484,2.87612403,172.13,172.0,12.58886843]
[1729970238701,26.2591,172.27,172.0,12.58886843]
[1729970238702,2.98211868,172.31,172.15,2.9082]
[1729970238993,2.98211868,172.31,172.08,12.58886843]
[1729970238994,12.58886843,172.24,172.12,12.58886843]
[1729970239302,17.74886843,172.22,172.12,12.58886843]
[1729970239793,12.58886843,172.22,172.12,12.58886843]
[1729970239995,5.16,172.21,172.12,12.58886843]
[1729970240193,2.9078,172.19,172.13,2.9085]
[1729970240593,12.58886843,172.17,172.02,6.0996]
[1729970240792,5.16,172.16,172.06,12.58886843]
[1729970241392,12.58886843,172.15,172.04,12.58886843]
[1729970242296,5.8119,172.3,172.06,12.58886843]
[1729970242500,5.16,172.33,172.17,12.58886843]
[1729970242702,2.9068,172.24,172.19,2.9076]
[1729970243298,12.58886843,172.27,172.17,12.58886843]
[1729970243299,1.4635,172.29,172.21,12.58886843]
[1729970243502,5.16,172.28,172.21,12.58886843]
[1729970243695,5.16,172.29,172.24,12.58886843]
[1729970243903,5.8069,172.44,172.26,12.58886843]
[1729970244104,2.9053,172.34,172.26,12.58886843]
[1729970244296,5.16,172.35,172.22,5.16]
[1729970244499,5.16,172.34,172.23,20.1075376]
[1729970244694,2.9053,172.33,172.27,2.9061]
[1729970244892,2.9053,172.33,172.23,20.1075376]
[1729970244893,5.16,172.32,172.23,20.1075376]
[1729970245097,4.6007,172.41,172.26,20.1075376]
[1729970245098,24.7082376,172.41,172.26,20.1075376]
[1729970245295,2.9048,172.36,172.3,2.9057]
[1729970245495,5.16,172.35,172.26,20.1075376]
[1729970245697,5.16,172.35,172.24,5.16]
[1729970245904,2.9053,172.34,172.28,2.9061]
[1729970246300,5.16,172.35,172.25,20.1075376]
[1729970246509,5.16,172.35,172.28,2.9061]
[1729970246710,5.16,172.35,172.25,20.1075376]
[1729970247011,2.9051,172.34,172.27,2.9063]
[1729970247705,2.9054,172.33,172.26,2.9064]
[1729970248600,5.16,172.35,172.25,20.1075376]
[1729970248807,2.9053,172.33,172.27,2.9061]
[1729970249497,5.16,172.35,172.22,5.46]
[1729970249498,25.2675376,172.35,172.22,20.1075376]
[1729970249704,25.2675376,172.35,172.23,2.9069]
[1729970249705,2.9061,172.29,172.23,2.9069]
[1729970249913,5.46,172.29,172.19,20.1075376]
[1729970250218,5.46,172.29,172.24,2.9068]
[1729970250413,2.90928029,172.49,172.25,20.1075376]
[1729970250610,1.4792,172.37,172.25,20.1075376]
[1729970251114,5.44,172.36,172.22,20.1075376]
[1729970251511,5.44,172.36,172.25,2.9066]
[1729970252013,20.1075376,172.28,172.12,20.1075376]
[1729970252216,2.87294421,172.36,172.15,20.1075376]
[1729970252217,1.5193,172.27,172.15,20.1075376]
[1729970252418,2.9068,172.25,172.18,2.9078]
[1729970252820,5.44,172.24,172.18,2.9078]
[1729970253212,5.44,172.24,172.15,20.1075376]
[1729970253414,20.1075376,172.19,171.97,6.94698497]
[1729970253619,20.1075376,172.19,172.04,20.1075376]
[1729970253620,5.78,172.18,172.04,20.1075376]
[1729970253818,5.78,172.18,172.0,0.4624]
[1729970253819,2.9093,172.1,172.03,2.9103]
[1729970254016,5.78,172.11,172.02,20.1075376]
[1729970254418,5.78,172.11,172.06,2.9097]
[1729970254727,5.78,172.12,172.05,20.1075376]
[1729970254919,8.689,172.11,172.05,2.91]
[1729970255116,56.5,172.15,172.02,20.1075376]
[1729970255316,5.78,172.14,172.02,20.1075376]
[1729970255615,5.78,172.14,172.07,2.9097]
[1729970255616,2.9087,172.13,172.07,2.9097]
[1729970255828,5.78,172.14,172.05,20.1075376]
[1729970256215,8.6886,172.14,172.07,2.9095]
[1729970256518,5.78,172.14,172.05,20.1075376]
[1729970256922,2.9089,172.12,172.06,2.9098]
[1729970257224,2.9089,172.12,172.05,20.1075376]
[1729970257422,5.78,172.14,172.05,20.1075376]
[1729970257730,5.78,172.14,172.05,23.0175376]
[1729970258123,2.909,172.11,172.05,20.1075376]
[1729970258319,5.78,172.14,172.05,20.1075376]
[1729970259225,2.9091,172.11,172.05,20.1075376]
[1729970259423,5.78,172.14,172.05,20.1075376]
[1729970259622,2.9088,172.12,172.06,2.9098]
[1729970259825,5.78,172.14,172.05,20.1075376]
[1729970260230,2.9088,172.12,172.05,23.0174376]
[1729970261427,2.909,172.11,172.05,23.0174376]
[1729970262826,2.9095,172.08,172.05,20.1075376]
[1729970263027,5.78,172.14,172.04,20.1075376]
[1729970263536,5.78,172.14,172.01,5.78]
[1729970263537,169.58749655,172.22,172.13,20.1075376]
[1729970264025,169.58749655,172.22,172.05,20.1075376]
[1729970264026,169.58749655,172.22,172.11,20.1075376]
[1729970264221,2.9081,172.17,172.11,20.1075376]
[1729970264422,8.6881,172.17,172.11,20.1075376]
[1729970264623,5.78,172.17,172.11,20.1075376]
[1729970265431,5.78,172.17,172.11,23.0164376]
[1729970265432,8.6881,172.17,172.11,23.0164376]
[1729970265924,5.78,172.17,172.11,23.0164376]
[1729970266626,5.78,172.17,172.08,20.1075376]
[1729970267019,2.9089,172.12,172.08,20.1075376]
[1729970267223,8.6889,172.12,172.06,2.9097]
[1729970267732,5.78,172.12,172.06,2.9097]
[1729970267931,2.909,172.11,172.06,2.9097]
[1729970269132,5.78,172.12,172.05,20.1075376]
[1729970269327,5.78,172.12,172.07,20.1075376]
[1729970269834,5.78,172.12,172.1,2.9091]
[1729970271334,163.80749655,172.22,172.12,2.9087]
[1729970271335,8.688,172.17,172.12,2.9087]
[1729970271537,5.78,172.17,172.1,20.1075376]
[1729970273134,5.78,172.17,172.1,23.0165376]
[1729970273640,2.9084,172.15,172.1,23.0165376]
[1729970274634,8.6884,172.15,172.1,23.0165376]
[1729970274836,8.6884,172.15,172.12,2.9088]
[1729970274837,5.78,172.15,172.12,2.9088]
[1729970275231,5.78,172.15,172.1,20.1075376]
[1729970276335,8.6884,172.15,172.11,2.9089]
[1729970276739,5.78,172.15,172.11,2.9089]
[1729970277332,5.78,172.15,172.1,20.1075376]
[1729970277537,2.9085,172.14,172.1,20.1075376]
[1729970278133,2.9085,172.14,172.09,2.9092]
[1729970278636,10.1924,172.15,172.1,2.9091]
[1729970278837,7.284,172.15,172.07,20.1075376]
[1729970279336,2.9086,172.14,172.09,2.9092]
[1729970280135,11.6119,172.47,172.07,25.8875376]
[1729970280341,11.6119,172.47,172.19,2.9076]
[1729970280342,2.9069,172.24,172.19,2.9076]
[1729970280541,2.9069,172.24,172.16,20.1075376]
[1729970280542,5.78,172.25,172.16,20.1075376]
[1729970280840,7.3617,172.24,172.16,20.1075376]
[1729970281045,5.78,172.23,172.18,2.9078]
[1729970281241,4.4886,172.24,172.12,5.78]
[1729970281242,7.3617,172.24,172.19,20.1075376]
[1729970282239,7.3617,172.24,172.2,2.9073]
[1729970283436,17.49,172.51,172.22,40.2150752]
[1729970283643,1.4613,172.37,172.29,20.1075376]
[1729970284849,2.9051,172.35,172.29,20.1075376]
[1729970285037,1.4613,172.37,172.29,20.1075376]
[1729970286439,4.366,172.37,172.3,2.9056]
[1729970286749,5.9,172.36,172.26,20.1075376]
[1729970286948,20.1075376,172.41,172.29,20.1075376]
[1729970286949,56.5,172.41,172.29,20.1075376]
[1729970287142,62.4,172.41,172.29,20.1075376]
[1729970287539,2.9987,172.48,172.39,20.1075376]
[1729970287540,2.9036,172.44,172.39,20.1075376]
[1729970287740,20.1075376,172.45,172.21,347.427]
[1729970288051,2.9041,172.4,172.33,2.9052]
[1729970288245,5.9,172.4,172.33,20.1075376]
[1729970288852,2.9043,172.39,172.33,20.1075376]
[1729970289145,5.9,172.4,172.33,20.1075376]
[1729970289345,8.8041,172.4,172.34,2.905]
[1729970289550,5.9,172.4,172.33,20.1075376]
[1729970289938,2.9044,172.39,172.33,20.1075376]
[1729970290145,5.9,172.4,172.3,20.1075376]
[1729970290650,1.5144,172.44,172.33,20.1075376]
[1729970290953,2.9043,172.39,172.32,2.9054]
[1729970291145,6.2,172.41,172.33,20.1075376]
[1729970291352,20.1075376,172.34,172.11,12.0179]
[1729970291547,20.1075376,172.34,172.28,2.9061]
[1729970291548,7.7018,172.33,172.28,2.9061]
[1729970291851,7.7018,172.33,172.23,20.1075376]
[1729970292051,7.7018,172.33,172.24,1.4513]
[1729970292556,6.2,172.33,172.24,1.4513]
[1729970292854,1.5018,172.37,172.26,20.1075376]
[1729970293253,6.2,172.36,172.29,20.1075376]
[1729970293443,6.2,172.36,172.33,2.9053]
[1729970293642,6.2,172.36,172.18,338.0]
[1729970293847,20.1075376,172.31,172.09,5.8185]
[1729970294052,2.9063,172.27,172.2,2.9073]
[1729970294246,6.74,172.3,172.17,20.1075376]
[1729970294754,2.906,172.29,172.17,20.1075376]
[1729970295342,2.906,172.29,172.14,1.9106]
[1729970295343,9.6458,172.3,172.2,20.1075376]
[1729970295853,9.6458,172.3,172.05,338.0]
[1729970295854,20.1075376,172.27,172.05,338.0]
[1729970296049,1.5583,172.34,172.17,20.1075376]
[1729970296050,6.74,172.26,172.17,20.1075376]
[1729970297048,2.9062,172.28,172.2,2.9073]
[1729970297253,2.9062,172.28,172.17,20.1075376]
[1729970297448,6.74,172.28,172.17,20.1075376]
[1729970297950,6.74,172.28,172.22,2.9071]
[1729970299048,6.74,172.28,172.17,21.7009376]
[1729970299049,9.6462,172.28,172.17,21.7009376]
[1729970299253,6.74,172.28,172.2,2.9074]
[1729970299556,6.74,172.28,172.17,21.7009376]
[1729970300958,2.9064,172.27,172.21,2.9073]
[1729970301151,2.9064,172.27,172.17,21.7009376]
[1729970301651,2.9065,172.26,172.17,21.7009376]
[1729970302458,2.9065,172.26,172.21,2.9073]
[1729970303059,6.74,172.28,172.17,1.5934]
[1729970303560,2.9072,172.22,172.17,1.5934]
[1729970303758,6.74,172.23,172.17,1.5934]
[1729970304853,9.6471,172.23,172.17,4.5013]
[1729970305060,6.74,172.23,172.17,4.5013]
[1729970306254,2.9072,172.22,172.17,4.5013]
[1729970307258,2.9072,172.22,172.18,2.9078]
[1729970308063,20.10286523,172.24,172.02,6.95812224]
[1729970308255,20.10286523,172.21,172.08,1.5327]
[1729970308457,9.2323,172.2,172.08,1.5327]
[1729970308655,2.9084,172.15,172.09,8.21452299]
[1729970308961,9.2323,172.2,172.09,20.10286523]
[1729970309150,9.2323,172.2,172.09,23.01206523]
[1729970309151,2.9083,172.16,172.09,23.01206523]
[1729970309358,9.2323,172.2,172.09,20.10286523]
[1729970309960,2.9082,172.16,172.1,2.909]
[1729970310354,9.2323,172.2,172.1,2.909]
[1729970310556,9.2323,172.2,172.08,1.5327]
[1729970310751,9.2323,172.2,172.08,21.63556523]
[1729970310954,2.9079,172.18,172.12,2.9087]
[1729970311156,2.9079,172.18,172.1,20.11588232]
[1729970312461,2.908,172.17,172.11,15.48247053]
[1729970314163,2.9086,172.14,172.08,2.9095]
[1729970315060,9.2323,172.2,172.04,1.4663]
[1729970315061,2.9078,172.19,172.13,2.9085]
[1729970315558,2.9078,172.19,172.1,12.57367053]
[1729970315559,9.2323,172.2,172.1,12.57367053]
[1729970315760,2.9077,172.19,172.13,2.9085]
[1729970315962,7.64,172.2,172.12,12.57367053]
[1729970316458,7.64,172.2,172.04,3.79362126]
[1729970316459,12.57367053,172.17,172.04,3.79362126]
[1729970316665,12.57367053,172.17,172.06,12.57367053]
[1729970316865,2.9084,172.15,172.09,2.9092]
[1729970317257,2.9084,172.15,172.06,12.57367053]
[1729970317453,2.9084,172.15,172.09,2.9092]
[1729970317657,2.9088,172.12,172.06,12.57367053]
[1729970318065,2.9088,172.12,172.07,2.9095]
[1729970318464,2.9091,172.11,172.04,1.4663]
[1729970318660,9.0964,172.14,172.05,2.9099]
[1729970318853,12.57367053,172.1,171.99,12.57367053]
[1729970319055,12.57367053,172.1,172.0,6.77283201]
[1729970319261,9.0964,172.14,171.96,12.57367053]
[1729970319262,12.57367053,172.06,171.96,12.57367053]
[1729970319465,2.9105,172.03,171.96,19.35161458]
[1729970319657,2.9105,172.03,171.96,12.57367053]
[1729970320258,2.9105,172.03,171.94,2.9118]
[1729970320462,2.9105,172.03,171.94,20.12731837]
[1729970320861,2.9105,172.03,171.97,2.9113]
[1729970321060,10.5502,172.05,171.97,20.12731837]
[1729970321364,7.64,172.05,172.0,20.12731837]
[1729970322362,2.9102,172.04,172.0,20.12731837]
[1729970322662,7.64,172.05,172.0,20.12731837]
[1729970322862,1.5262,172.09,172.05,2.91]
[1729970323055,7.64,172.1,172.05,20.12731837]
[1729970323368,7.64,172.14,172.09,2.9093]
[1729970325466,7.64,172.14,172.08,20.12731837]
[1729970325666,7.64,172.14,172.1,2.9092]
[1729970326369,7.64,172.14,172.08,20.12731837]
[1729970327062,7.64,172.14,172.11,2.9089]
[1729970330360,7.64,172.14,172.08,20.12731837]
[1729970330567,7.64,172.14,172.01,3.0992]
[1729970330568,7.64,172.14,172.05,20.12731837]
[1729970330763,9.1418,172.14,172.02,20.12731837]
[1729970330962,2.9093,172.1,172.02,20.12731837]
[1729970331174,1.5155,172.13,172.05,2.9099]
[1729970331363,2.9093,172.1,172.05,2.9099]
[1729970331564,1.5155,172.13,172.05,2.9099]
[1729970331964,2.9093,172.1,172.02,20.12731837]
[1729970332165,1.5155,172.13,172.0,20.12731837]
[1729970332669,2.9095,172.08,172.04,2.9101]
[1729970332866,10.5495,172.08,172.0,20.12731837]
[1729970333673,7.64,172.08,172.0,20.12731837]
[1729970334670,2.9097,172.07,172.0,20.12731837]
[1729970335176,2.9097,172.07,172.03,2.9102]
[1729970337074,7.64,172.08,172.06,2.9097]
[1729970337268,2.9092,172.1,172.06,2.9097]
[1729970337470,2.9092,172.1,172.0,20.12731837]
[1729970337471,7.28,172.1,172.05,20.12731837]
[1729970337676,7.28,172.1,172.09,2.9093]
[1729970338074,1.5018,172.14,172.09,2.9093]
[1729970338075,7.28,172.14,172.09,2.9093]
[1729970338467,2.9087,172.13,172.1,2.9092]
[1729970339165,7.28,172.14,172.12,2.9088]
[1729970339376,56.5,172.17,172.11,20.12731837]
[1729970339676,56.5,172.17,172.14,2.9084]
[1729970340272,4.4933,172.19,172.11,20.12731837]
[1729970340472,10.1878,172.19,172.14,20.12731837]
[1729970341271,10.1878,172.19,172.15,2.9083]
[1729970342981,10.1878,172.19,172.1,2.9091]
[1729970342982,2.9083,172.16,172.1,2.9091]
[1729970343179,12.57006214,172.17,172.07,12.57006214]
[1729970343387,3.156,172.16,172.07,12.57006214]
[1729970344292,3.156,172.16,172.06,20.12690934]
[1729970344994,2.9084,172.15,172.1,2.9091]
[1729970345586,3.156,172.16,172.06,20.12690934]
[1729970345786,2.9088,172.12,172.07,2.9096]
[1729970345981,10.1888,172.12,172.06,20.12690934]
[1729970346688,10.1888,172.12,172.08,2.9094]
[1729970347894,7.28,172.12,172.09,2.9093]
[1729970349096,2.9087,172.13,172.09,2.9093]
[1729970349294,6.94,172.12,172.09,2.9093]
[1729970350290,6.94,172.12,172.06,20.12690934]
[1729970351297,6.94,172.12,172.09,2.9092]
[1729970351994,8.4173,172.12,172.09,2.9092]
[1729970352390,8.4173,172.12,172.1,2.9091]
[1729970353499,1.4773,172.12,172.1,2.9091]
[1729970353697,6.94,172.11,172.1,2.9091]
[1729970354490,6.94,172.11,172.06,20.12690934]
[1729970354491,6.94,172.13,172.12,2.9087]
[1729970354792,6.94,172.18,172.12,20.12690934]
[1729970354992,6.94,172.18,172.13,2.9085]
[1729970355197,6.94,172.18,172.09,20.12690934]
[1729970356194,2.9081,172.17,172.13,2.9086]
[1729970356399,1.4994,172.19,172.09,20.12690934]
[1729970356599,8.4394,172.19,172.12,20.12690934]
[1729970357499,8.4394,172.19,172.17,2.9079]
[1729970358297,8.4394,172.19,172.18,2.9078]
[1729970362103,5.9453,172.25,172.2,2.9073]
[1729970362296,6.94,172.24,172.2,2.9073]
[1729970363305,9.8468,172.24,172.2,2.9073]
[1729970363710,4.6111,172.25,172.17,20.12690934]
[1729970363910,6.94,172.24,172.17,20.12690934]
[1729970364808,6.94,172.24,172.22,2.9071]
[1729970367806,6.94,172.24,172.23,2.907]
[1729970368010,6.94,172.24,172.21,12.56067425]
[1729970368402,1.5725,172.25,172.23,15.46767425]
[1729970368601,6.56,172.24,172.23,12.56067425]
[1729970369002,6.56,172.24,172.23,15.46767425]
[1729970372507,2.9056,172.31,172.23,12.56067425]
[1729970372709,6.56,172.3,172.27,12.56067425]
[1729970372904,6.56,172.29,172.27,12.56067425]
[1729970373906,6.56,172.29,172.22,12.56067425]
[1729970374113,1.4697,172.28,172.22,12.56067425]
[1729970374919,2.9065,172.26,172.22,15.46777425]
[1729970376712,3.0822,172.28,172.15,6.56]
[1729970376713,3.0822,172.28,172.25,2.9065]
[1729970377020,3.0822,172.28,172.24,12.56067425]
[1729970377021,1.4697,172.28,172.24,12.56067425]
[1729970377418,4.3758,172.28,172.24,2.9067]
[1729970377720,1.4697,172.28,172.2,12.56067425]
[1729970378715,2.9069,172.24,172.2,15.46807425]
[1729970379013,2.9069,172.24,172.12,9.6432]
[1729970379014,6.56,172.23,172.18,12.56067425]
[1729970379221,6.56,172.22,172.16,12.56067425]
[1729970379418,6.56,172.21,172.16,12.56067425]
[1729970379815,6.56,172.21,172.18,2.9078]
[1729970380119,6.56,172.21,172.16,12.56067425]
[1729970380510,6.56,172.21,172.18,2.9077]
[1729970380913,6.56,172.21,172.16,12.56067425]
[1729970381222,6.56,172.21,172.07,1.5622]
[1729970381418,6.56,172.21,172.11,12.56067425]
[1729970381419,1.5673,172.2,172.11,12.56067425]
[1729970381617,3.1565,172.2,172.11,12.56067425]
[1729970383322,2.9078,172.18,172.11,12.56067425]
[1729970383822,2.9078,172.18,172.13,2.9085]
[1729970384316,2.9085,172.15,172.1,2.909]
[1729970384525,2.9085,172.15,172.08,12.56067425]
[1729970384526,9.4685,172.15,172.08,12.56067425]
[1729970385316,9.4685,172.15,172.11,2.9089]
[1729970386424,6.56,172.15,172.03,1.612]
[1729970386621,12.56067425,172.13,172.03,12.56067425]
[1729970386922,6.56,172.12,172.05,12.56067425]
[1729970387124,6.56,172.12,172.08,2.9094]
[1729970387717,1.5793,172.14,172.1,2.9091]
[1729970388024,1.5793,172.14,172.07,12.56067425]
[1729970388025,6.56,172.11,172.07,12.56067425]
[1729970388218,6.56,172.11,172.09,2.9093]
[1729970392015,1.5793,172.14,172.07,12.56067425]
[1729970392223,6.22,172.13,172.07,12.56067425]
[1729970394223,6.22,172.13,172.11,2.9089]
[1729970396018,6.22,172.13,172.07,12.56067425]
[1729970396221,2.909,172.12,172.08,2.9094]
[1729970397522,2.909,172.11,172.07,2.9096]
[1729970397830,18.78067425,172.13,172.03,12.56067425]
[1729970398131,2.9093,172.09,172.05,2.91]
[1729970398425,6.24,172.08,172.05,2.91]
[1729970398619,9.1495,172.08,172.05,2.91]
[1729970398928,6.24,172.08,172.03,12.56067425]
[1729970399128,6.24,172.08,172.05,2.9099]
[1729970400231,6.24,172.08,172.0,19.28751045]
[1729970400426,2.9099,172.06,172.03,2.9103]
[1729970400931,2.9098,172.07,172.03,2.9102]
[1729970401325,2.9098,172.07,172.0,12.56067425]
[1729970401521,2.9098,172.07,172.04,2.9101]
[1729970402731,6.24,172.08,172.0,12.56067425]
[1729970402927,6.24,172.08,172.04,2.9101]
[1729970403132,6.24,172.08,172.03,12.56067425]
[1729970403333,6.24,172.08,172.01,12.56067425]
[1729970403533,2.9098,172.07,172.04,2.91]
[1729970403733,6.24,172.08,172.01,12.56067425]
[1729970403937,6.24,172.07,172.06,2.9097]
[1729970405835,6.24,172.07,172.05,2.9099]
[1729970406944,6.24,172.07,172.06,2.9098]
[1729970408034,1.5793,172.14,172.06,12.56067425]
[1729970408232,6.24,172.13,172.09,12.56067425]
[1729970409334,6.24,172.13,172.1,2.909]
[1729970409842,6.24,172.13,172.09,12.56067425]
[1729970410738,6.24,172.13,172.1,2.9091]
[1729970412148,6.24,172.13,172.09,12.56067425]
[1729970412345,6.24,172.13,172.11,2.909]
[1729970413045,6.24,172.13,172.09,12.56067425]
[1729970413245,6.24,172.13,172.12,2.9088]
[1729970413438,6.24,172.13,172.09,12.56067425]
[1729970414039,6.24,172.13,172.1,2.909]
[1729970415244,2.9078,172.18,172.12,2.9088]
[1729970415436,1.6121,172.19,172.11,12.56067425]
[1729970415637,5.9,172.16,172.11,12.56067425]
[1729970416037,5.9,172.16,172.14,12.56067425]
[1729970417438,5.9,172.16,172.14,15.46897425]
[1729970417640,5.9,172.16,172.14,12.56067425]
[1729970418638,5.9,172.16,172.14,15.46907425]
[1729970419841,5.9,172.16,172.06,1.5272]
[1729970420045,5.9,172.16,172.08,12.56067425]
[1729970420541,5.9,172.16,172.09,2.9093]
[1729970420740,2.9088,172.13,172.09,2.9093]
[1729970421346,5.9,172.13,172.12,2.9088]
[1729970423839,5.9,172.16,172.15,2.9082]
[1729970425049,8.8079,172.18,172.15,2.9082]
[1729970425449,8.8079,172.18,172.12,12.56067425]
[1729970425450,5.9,172.18,172.13,2.9085]
[1729970425754,5.9,172.18,172.12,12.56067425]
[1729970426146,5.9,172.18,172.16,2.9081]
[1729970426345,2.9077,172.19,172.16,2.9081]
[1729970426542,2.9077,172.19,172.17,12.56067425]
[1729970426543,5.9,172.19,172.17,12.56067425]
[1729970427150,5.9,172.19,172.18,2.9078]
[1729970427349,5.9,172.19,172.13,12.56067425]
[1729970428255,8.8077,172.19,172.16,2.9081]
[1729970429853,5.9,172.19,172.13,12.56067425]
[1729970430055,5.9,172.19,172.11,12.56067425]
[1729970430449,8.8867,172.19,172.11,12.56067425]
[1729970430647,8.8867,172.19,172.12,2.9087]
[1729970430648,2.9083,172.16,172.12,2.9087]
[1729970432156,12.56067425,172.18,172.1,2.9091]
[1729970432356,14.18277425,172.18,172.1,2.9091]
[1729970432557,2.9085,172.14,172.1,2.9091]
[1729970432758,5.9,172.13,172.08,12.56067425]
[1729970433056,5.9,172.13,172.11,2.909]
[1729970433855,8.8087,172.13,172.1,2.9091]
[1729970435159,5.9,172.13,172.1,2.9091]
[1729970436058,5.9,172.13,172.12,2.9088]
[1729970441071,2.9088,172.12,172.09,2.9093]
[1729970442175,5.9,172.13,172.06,1.5272]
[1729970442476,5.9,172.13,172.07,12.56067425]
[1729970442667,5.9,172.13,172.06,1.5272]
[1729970442867,2.9089,172.12,172.09,2.9092]
[1729970443065,5.9,172.13,172.08,12.56067425]